[Event "Biel Main Tournament 2019"]
[Site "Biel"]
[Date "2019.07.28"]
[Round "6.3"]
[White "Esper, Christian"]
[Black "Brait, Wolfgang"]
[Result "1/2-1/2"]
[ECO "C04"]
[WhiteElo "1979"]
[BlackElo "1923"]
[Annotator "NA"]
[PlyCount "52"]
[EventDate "2019.07.20"]
[EventType "swiss"]
[EventCountry "SUI"]
[SourceTitle "playchess.com"]
[Source "ChessBase"]
[SourceQuality "1"]
[TimeControl "40/5400+30:1800+30"]

1. e4 {[%emt 0:00:00]} e6 {[%emt 0:00:01]} 2. d4 {[%emt 0:00:13]} d5 {[%emt 0:00:04]} 3. Nd2 {[%emt 0:00:38]} Nc6 {[%emt 0:00:20]} 4. Ngf3 {[%emt 0:04:03]} Nf6 {[%emt 0:00:21]} 5. e5 {[%emt 0:03:06]} Nd7 {[%emt 0:00:08]} 6. c3 {[%emt 0:02:40]} f6 {[%emt 0:00:39]} 7. exf6 {[%emt 0:00:53]} Qxf6 {[%emt 0:00:06]} 8. Bb5 {[%emt 0:18:32]} h6 {[%emt 0:07:46]} 9. O-O {[%emt 0:00:30]} Bd6 {[%emt 0:00:30]} 10. Nb3 {[%emt 0:00:30]} O-O {[%emt 0:01:04]} 11. Be3 {[%emt 0:02:14]} Ne7 {[%emt 0:03:40]} 12. Qd2 {[%emt 0:07:05]} c6 {[%emt 0:04:28]} 13. Bd3 {[%emt 0:00:45]} Nf5 {[%emt 0:09:52]} 14. Rae1 {[%emt 0:04:11]} e5 {[%emt 0:01:48]} 15. dxe5 {[%emt 0:05:31]} Nxe5 {[%emt 0:00:53]} 16. Nxe5 {[%emt 0:01:44]} Bxe5 {[%emt 0:05:02]} 17. Bc5 {[%emt 0:03:14]} Bd6 {[%emt 0:01:52]} 18. Bxd6 {[%emt 0:04:41]} Qxd6 {[%emt 0:04:29]} 19. Re2 {[%emt 0:01:58]} Bd7 {[%emt 0:01:29]} 20. Rfe1 {[%emt 0:00:44]} Rf7 {[%emt 0:00:28]} 21. Bb1 {[%emt 0:01:08]} g6 {[%emt 0:04:52]} 22. Nd4 {[%emt 0:14:28]} Nxd4 {[%emt 0:09:49]} 23. Qxd4 {[%emt 0:00:10]} b6 {[%emt 0:06:42]} 24. Qe5 {[%emt 0:01:20]} Qxe5 {[%emt 0:00:48]} 25. Rxe5 {[%emt 0:00:08]} Kg7 {[%emt 0:00:06]} 26. h4 {[%emt 0:01:56]} Raf8 {[%emt 0:01:20]} 1/2-1/2

[Event "Biel Main Tournament 2019"]
[Site "Biel"]
[Date "2019.07.28"]
[Round "6.5"]
[White "Siddharth, Gopakumar"]
[Black "Pao, Lucas Ping"]
[Result "*"]
[ECO "B19"]
[WhiteElo "1847"]
[BlackElo "1969"]
[Annotator "NA RC"]
[PlyCount "28"]
[EventDate "2019.07.20"]
[EventType "swiss"]
[EventCountry "SUI"]
[SourceTitle "playchess.com"]
[Source "ChessBase"]
[SourceQuality "1"]
[TimeControl "40/5400+30:1800+30"]

1. e4 {[%emt 0:00:00]} c6 {[%emt 0:02:20]} 2. d4 {[%emt 0:00:00]} d5 {[%emt 0:00:07]} 3. Nc3 {[%emt 0:00:00]} dxe4 {[%emt 0:00:08]} 4. Nxe4 {[%emt 0:00:00]} Bf5 {[%emt 0:00:10]} 5. Ng3 {[%emt 0:00:02]} Bg6 {[%emt 0:00:06]} 6. h4 {[%emt 0:00:28]} h6 {[%emt 0:00:16]} 7. Nf3 {[%emt 0:00:26]} Nd7 {[%emt 0:00:07]} 8. h5 {[%emt 0:00:08]} Bh7 {[%emt 0:00:16]} 9. Bd3 {[%emt 0:00:08]} Bxd3 {[%emt 0:00:09]} 10. Qxd3 {[%emt 0:00:07]} e6 {[%emt 0:00:12]} 11. Ne4 {[%emt 0:04:05]} Ngf6 {[%emt 0:01:16]} 12. Nxf6+ {[%emt 0:04:57]} Nxf6 {[%emt 0:00:14]} 13. Bd2 {[%emt 0:00:20]} Be7 {[%emt 0:00:25]} 14. O-O-O {[%emt 0:00:29]} Qc7 {[%emt 0:00:49]} *

[Event "Biel Main Tournament 2019"]
[Site "Biel"]
[Date "2019.07.28"]
[Round "6.7"]
[White "Gerber, Renaud"]
[Black "Haag, Rolf"]
[Result "1-0"]
[ECO "C01"]
[WhiteElo "1952"]
[BlackElo "1821"]
[Annotator "NA"]
[PlyCount "20"]
[EventDate "2019.07.20"]
[EventType "swiss"]
[EventCountry "SUI"]
[SourceTitle "playchess.com"]
[Source "ChessBase"]
[SourceQuality "1"]
[TimeControl "40/5400+30:1800+30"]

1. e4 {[%emt 0:00:00]} e6 {[%emt 0:00:00]} 2. d4 {[%emt 0:00:41]} d5 {[%emt 0:00:00]} 3. exd5 {[%emt 0:00:10]} exd5 {[%emt 0:00:00]} 4. Bd3 {[%emt 0:00:29]} c5 {[%emt 0:02:22]} 5. dxc5 {[%emt 0:04:44]} Bxc5 {[%emt 0:00:09]} 6. Nc3 {[%emt 0:01:54]} Nf6 {[%emt 0:02:24]} 7. Bg5 {[%emt 0:06:14]} O-O {[%emt 0:18:23]} 8. Bxf6 {[%emt 0:14:21]} Bg4 {[%emt 0:00:31]} 9. Bxd8 {[%emt 0:00:07]} g6 {[%emt 0:13:18]} 10. h4 {[%emt 0:00:00]} h6 {[%emt 0:12:51]} 1-0

[Event "Biel Main Tournament 2019"]
[Site "Biel"]
[Date "2019.07.28"]
[Round "6.9"]
[White "Sudan, Georges"]
[Black "Wenger, Arejou"]
[Result "*"]
[ECO "B03"]
[WhiteElo "1978"]
[BlackElo "1730"]
[Annotator "NA RC"]
[PlyCount "21"]
[EventDate "2019.07.20"]
[EventType "swiss"]
[EventCountry "SUI"]
[SourceTitle "playchess.com"]
[Source "ChessBase"]
[SourceQuality "1"]
[TimeControl "40/5400+30:1800+30"]

1. e4 {[%emt 0:00:00]} Nf6 {[%emt 0:00:00]} 2. e5 {[%emt 0:00:02]} Nd5 {[%emt 0:00:00]} 3. d4 {[%emt 0:00:08]} d6 {[%emt 0:00:00]} 4. Bc4 {[%emt 0:00:51]} Nb6 {[%emt 0:00:00]} 5. Bb3 {[%emt 0:00:15]} dxe5 {[%emt 0:00:00]} 6. Qh5 {[%emt 0:00:14]} e6 {[%emt 0:00:00]} 7. dxe5 {[%emt 0:00:09]} c5 {[%emt 0:01:32]} 8. Qe2 {[%emt 0:09:41]} Nc6 {[%emt 0:03:37]} 9. Nf3 {[%emt 0:00:09]} c4 {[%emt 0:02:25]} 10. Bxc4 {[%emt 0:00:42]} Nxc4 {[%emt 0:00:06]} 11. O-O {[%emt 0:07:26]} *

[Event "Biel Main Tournament 2019"]
[Site "Biel"]
[Date "2019.07.31"]
[Round "7.1"]
[White "Prieb, Robert"]
[Black "Schneuwly, Achim"]
[Result "0-1"]
[ECO "A43"]
[WhiteElo "1824"]
[BlackElo "1984"]
[Annotator "NA"]
[PlyCount "88"]
[EventDate "2019.07.20"]
[EventType "swiss"]
[EventCountry "SUI"]
[TimeControl "40/5400+30:1800+30"]

1. d4 {[%emt 0:00:00]} c5 {[%emt 0:00:00]} 2. d5 {[%emt 0:00:00]} e6 {[%emt 0:00:00]} 3. c4 {[%emt 0:00:14]} exd5 {[%emt 0:00:00]} 4. cxd5 {[%emt 0:00:14]} d6 {[%emt 0:00:01]} 5. Nc3 {[%emt 0:00:19]} Ne7 {[%emt 0:00:09]} 6. e4 {[%emt 0:00:53]} Ng6 {[%emt 0:00:08]} 7. h3 {[%emt 0:03:10]} Be7 {[%emt 0:00:22]} 8. Nf3 {[%emt 0:01:40]} O-O {[%emt 0:01:06]} 9. Be2 {[%emt 0:00:54]} Bf6 {[%emt 0:00:13]} 10. O-O {[%emt 0:03:05]} Re8 {[%emt 0:00:04]} 11. Qc2 {[%emt 0:02:08]} Na6 {[%emt 0:04:11]} 12. Bxa6 {[%emt 0:09:30]} bxa6 {[%emt 0:00:05]} 13. Be3 {[%emt 0:01:53]} Rb8 {[%emt 0:00:28]} 14. Nd2 {[%emt 0:04:37]} Rb4 {[%emt 0:07:56]} 15. a3 {[%emt 0:04:18]} Rb7 {[%emt 0:06:57]} 16. Rad1 {[%emt 0:04:57]} Bd7 {[%emt 0:00:40]} 17. Rfe1 {[%emt 0:07:26]} Qb8 {[%emt 0:06:40]} 18. Rb1 {[%emt 0:09:14]} Bb5 {[%emt 0:05:18]} 19. Nxb5 {[%emt 0:08:05]} axb5 {[%emt 0:03:12]} 20. f4 {[%emt 0:03:34]} c4 {[%emt 0:20:52]} 21. g4 {[%emt 0:13:37]} h6 {[%emt 0:01:03]} 22. Nf3 {[%emt 0:01:44]} Qc7 {[%emt 0:01:04]} 23. Rbc1 {[%emt 0:04:11]} Qa5 {[%emt 0:03:59]} 24. g5 {[%emt 0:04:18]} hxg5 {[%emt 0:00:27]} 25. fxg5 {[%emt 0:00:00]} Be5 {[%emt 0:00:48]} 26. Bd2 {[%emt 0:02:22]} Qd8 {[%emt 0:01:48]} 27. Rf1 {[%emt 0:03:57]} Bf4 {[%emt 0:16:17]} 28. Rce1 {[%emt 0:02:06]} Rbe7 {[%emt 0:04:35]} 29. Kh1 {[%emt 0:01:51]} Qc8 {[%emt 0:02:50]} 30. Kg2 {[%emt 0:00:42]} f6 {[%emt 0:06:29]} 31. gxf6 {[%emt 0:01:35]} gxf6 {[%emt 0:00:29]} 32. Rg1 {[%emt 0:00:45]} Kf7 {[%emt 0:01:09]} 33. e5 {[%emt 0:02:04]} dxe5 {[%emt 0:02:37]} 34. Kf2 {[%emt 0:00:25]} e4 {[%emt 0:01:26]} 35. Rxg6 {[%emt 0:00:36]} Qc5+ {[%emt 0:00:46]} 36. Kf1 {[%emt 0:00:41]} Bxd2 {[%emt 0:00:19]} 37. Qxd2 {[%emt 0:00:39]} Kxg6 {[%emt 0:00:42]} 38. Nh4+ {[%emt 0:00:03]} Kf7 {[%emt 0:01:22]} 39. Qh6 {[%emt 0:00:05]} Rg8 {[%emt 0:00:12]} 40. Qh5+ {[%emt 0:00:00]} Kf8 {[%emt 0:00:00]} 41. Ng6+ {[%emt 0:00:54]} Rxg6 {[%emt 0:01:02]} 42. Qxg6 {[%emt 0:01:51]} Qxd5 {[%emt 0:10:13]} 43. Qh6+ {[%emt 0:01:12]} Rg7 {[%emt 0:02:35]} 44. Qh8+ {[%emt 0:02:19]} Kf7 {[%emt 0:00:17]} 0-1

[Event "Biel Main Tournament 2019"]
[Site "Biel"]
[Date "2019.07.30"]
[Round "7.2"]
[White "Thode, Gilda"]
[Black "Gerber, Renaud"]
[Result "1-0"]
[ECO "D03"]
[WhiteElo "1931"]
[BlackElo "1952"]
[Annotator "NA"]
[PlyCount "81"]
[EventDate "2019.07.20"]
[EventType "swiss"]
[EventCountry "SUI"]
[TimeControl "40/5400+30:1800+30"]

1. d4 {[%emt 0:05:25]} d5 {[%emt 0:00:00]} 2. Nf3 {[%emt 0:00:35]} Nf6 {[%emt 0:00:00]} 3. Bg5 {[%emt 0:00:28]} Ne4 {[%emt 0:01:29]} 4. Bf4 {[%emt 0:06:15]} e6 {[%emt 0:00:51]} 5. e3 {[%emt 0:07:49]} g5 {[%emt 0:05:06]} 6. Be5 {[%emt 0:26:10]} f6 {[%emt 0:00:27]} 7. Nbd2 {[%emt 0:18:52]} Nxd2 {[%emt 0:04:34]} 8. Nxg5 {[%emt 0:13:26]} fxe5 {[%emt 0:00:59]} 9. Qh5+ {[%emt 0:00:15]} Kd7 {[%emt 0:00:34]} 10. Nf7 {[%emt 0:05:16]} Qf6 {[%emt 0:01:08]} 11. dxe5 {[%emt 0:04:14]} Qf5 {[%emt 0:02:37]} 12. Qxf5 {[%emt 0:02:01]} exf5 {[%emt 0:00:06]} 13. Nxh8 {[%emt 0:00:59]} Ke7 {[%emt 0:00:32]} 14. Kxd2 {[%emt 0:00:58]} Bg7 {[%emt 0:00:09]} 15. f4 {[%emt 0:00:31]} Be6 {[%emt 0:03:51]} 16. Bd3 {[%emt 0:02:46]} Nd7 {[%emt 0:00:38]} 17. g4 {[%emt 0:01:18]} Rf8 {[%emt 0:02:29]} 18. gxf5 {[%emt 0:00:40]} Bxf5 {[%emt 0:00:11]} 19. Rag1 {[%emt 0:00:48]} Bxh8 {[%emt 0:00:17]} 20. Bxf5 {[%emt 0:00:34]} Rxf5 {[%emt 0:00:05]} 21. Rg8 {[%emt 0:00:05]} Rf8 {[%emt 0:00:11]} 22. Rhg1 {[%emt 0:00:51]} Kf7 {[%emt 0:01:47]} 23. R8g5 {[%emt 0:00:38]} Re8 {[%emt 0:01:11]} 24. Rh5 {[%emt 0:00:18]} Nf8 {[%emt 0:00:16]} 25. Rf5+ {[%emt 0:00:42]} Ke6 {[%emt 0:00:39]} 26. Rfg5 {[%emt 0:00:26]} Nd7 {[%emt 0:00:44]} 27. Rg8 {[%emt 0:00:35]} Rf8 {[%emt 0:00:10]} 28. h4 {[%emt 0:00:26]} Kf7 {[%emt 0:00:14]} 29. R8g5 {[%emt 0:00:35]} Nc5 {[%emt 0:00:23]} 30. Rh5 {[%emt 0:00:27]} h6 {[%emt 0:09:39]} 31. Rxh6 {[%emt 0:00:24]} Rg8 {[%emt 0:02:24]} 32. Rxg8 {[%emt 0:00:38]} Kxg8 {[%emt 0:00:04]} 33. b4 {[%emt 0:00:31]} Ne4+ {[%emt 0:00:29]} 34. Kd3 {[%emt 0:00:29]} Bg7 {[%emt 0:01:50]} 35. Rg6 {[%emt 0:00:21]} Kf7 {[%emt 0:00:13]} 36. h5 {[%emt 0:00:20]} Bf8 {[%emt 0:01:17]} 37. a3 {[%emt 0:00:46]} a5 {[%emt 0:01:29]} 38. c4 {[%emt 0:00:33]} axb4 {[%emt 0:00:46]} 39. axb4 {[%emt 0:00:30]} c6 {[%emt 0:00:57]} 40. cxd5 {[%emt 0:00:00]} cxd5 {[%emt 0:00:00]} 41. Rb6 {[%emt 0:00:49]} 1-0

[Event "Biel Main Tournament 2019"]
[Site "Biel"]
[Date "2019.07.30"]
[Round "7.3"]
[White "Esper, Christian"]
[Black "Meyer, Prosper"]
[Result "1-0"]
[ECO "C06"]
[WhiteElo "1979"]
[BlackElo "1916"]
[Annotator "NA"]
[PlyCount "55"]
[EventDate "2019.07.20"]
[EventType "swiss"]
[EventCountry "SUI"]
[TimeControl "40/5400+30:1800+30"]

1. e4 {[%emt 0:00:00]} e6 {[%emt 0:00:00]} 2. d4 {[%emt 0:00:00]} d5 {[%emt 0:00:00]} 3. Nd2 {[%emt 0:00:06]} Nf6 {[%emt 0:00:00]} 4. e5 {[%emt 0:01:44]} Nfd7 {[%emt 0:00:05]} 5. Bd3 {[%emt 0:01:01]} c5 {[%emt 0:00:14]} 6. c3 {[%emt 0:00:10]} Nc6 {[%emt 0:00:05]} 7. Ne2 {[%emt 0:01:12]} cxd4 {[%emt 0:00:21]} 8. cxd4 {[%emt 0:00:15]} f6 {[%emt 0:01:36]} 9. exf6 {[%emt 0:02:14]} Nxf6 {[%emt 0:00:10]} 10. Nf3 {[%emt 0:02:16]} Bd6 {[%emt 0:04:35]} 11. O-O {[%emt 0:03:34]} Qc7 {[%emt 0:00:33]} 12. Nc3 {[%emt 0:03:31]} a6 {[%emt 0:00:39]} 13. Bg5 {[%emt 0:10:49]} O-O {[%emt 0:00:39]} 14. Rc1 {[%emt 0:03:24]} Qf7 {[%emt 0:06:34]} 15. Na4 {[%emt 0:12:23]} Qh5 {[%emt 0:03:47]} 16. h3 {[%emt 0:13:55]} Nxd4 {[%emt 0:10:49]} 17. Nxd4 {[%emt 0:02:33]} Qxg5 {[%emt 0:00:22]} 18. Nb6 {[%emt 0:01:10]} Ne4 {[%emt 0:05:59]} 19. Bxe4 {[%emt 0:05:54]} dxe4 {[%emt 0:04:54]} 20. Nxa8 {[%emt 0:01:39]} Bd7 {[%emt 0:01:19]} 21. Nb6 {[%emt 0:00:49]} Be8 {[%emt 0:03:35]} 22. Nc4 {[%emt 0:01:29]} Bf4 {[%emt 0:19:43]} 23. Nxe6 {[%emt 0:00:31]} Qh6 {[%emt 0:00:16]} 24. Nxf8 {[%emt 0:01:29]} Kxf8 {[%emt 0:00:28]} 25. Rc3 {[%emt 0:00:33]} b5 {[%emt 0:01:19]} 26. Ne3 {[%emt 0:00:43]} b4 {[%emt 0:01:10]} 27. Rc8 {[%emt 0:00:53]} Qe6 {[%emt 0:01:14]} 28. Qd8 {[%emt 0:00:32]} 1-0

[Event "Biel Main Tournament 2019"]
[Site "Biel"]
[Date "2019.07.30"]
[Round "7.5"]
[White "Deubelbeiss, Rene"]
[Black "Lada, Ireneusz"]
[Result "1-0"]
[ECO "A10"]
[WhiteElo "1972"]
[BlackElo "1914"]
[Annotator "NA"]
[PlyCount "95"]
[EventDate "2019.07.20"]
[EventType "swiss"]
[EventCountry "SUI"]
[TimeControl "40/5400+30:1800+30"]

1. c4 {[%emt 0:00:00]} b6 {[%emt 0:01:03]} 2. Nc3 {[%emt 0:00:40]} e6 {[%emt 0:00:08]} 3. e4 {[%emt 0:00:38]} Bb7 {[%emt 0:00:30]} 4. Nge2 {[%emt 0:00:41]} g6 {[%emt 0:07:05]} 5. g3 {[%emt 0:02:11]} Bg7 {[%emt 0:00:55]} 6. Bg2 {[%emt 0:00:49]} Ne7 {[%emt 0:00:32]} 7. O-O {[%emt 0:01:43]} O-O {[%emt 0:00:37]} 8. d3 {[%emt 0:05:05]} c5 {[%emt 0:08:09]} 9. Bf4 {[%emt 0:12:41]} d6 {[%emt 0:09:54]} 10. Qd2 {[%emt 0:03:13]} Nbc6 {[%emt 0:02:52]} 11. Bh6 {[%emt 0:05:27]} Qd7 {[%emt 0:03:05]} 12. Bxg7 {[%emt 0:05:02]} Kxg7 {[%emt 0:00:17]} 13. f4 {[%emt 0:05:29]} f5 {[%emt 0:03:44]} 14. Rad1 {[%emt 0:04:10]} Nd4 {[%emt 0:03:48]} 15. Nxd4 {[%emt 0:18:32]} cxd4 {[%emt 0:00:24]} 16. Ne2 {[%emt 0:00:06]} e5 {[%emt 0:00:43]} 17. Rf2 {[%emt 0:06:30]} Rf6 {[%emt 0:08:48]} 18. b3 {[%emt 0:00:32]} Raf8 {[%emt 0:01:20]} 19. Qb4 {[%emt 0:01:26]} fxe4 {[%emt 0:03:18]} 20. dxe4 {[%emt 0:00:54]} Bc6 {[%emt 0:03:17]} 21. Qd2 {[%emt 0:02:13]} a5 {[%emt 0:01:44]} 22. Nc1 {[%emt 0:00:17]} Bb7 {[%emt 0:05:12]} 23. Nd3 {[%emt 0:00:57]} Nc6 {[%emt 0:00:06]} 24. Rdf1 {[%emt 0:02:02]} Qe7 {[%emt 0:02:36]} 25. a3 {[%emt 0:00:59]} Qf7 {[%emt 0:01:09]} 26. Rc1 {[%emt 0:01:03]} Qe7 {[%emt 0:02:46]} 27. b4 {[%emt 0:02:19]} axb4 {[%emt 0:00:30]} 28. axb4 {[%emt 0:00:05]} Ra8 {[%emt 0:00:30]} 29. c5 {[%emt 0:05:01]} dxc5 {[%emt 0:04:13]} 30. bxc5 {[%emt 0:00:21]} Na5 {[%emt 0:07:19]} 31. fxe5 {[%emt 0:06:00]} Rxf2 {[%emt 0:00:07]} 32. Qxf2 {[%emt 0:00:09]} Nb3 {[%emt 0:00:06]} 33. Rf1 {[%emt 0:00:45]} bxc5 {[%emt 0:00:19]} 34. Qf6+ {[%emt 0:00:53]} Qxf6 {[%emt 0:00:03]} 35. exf6+ {[%emt 0:00:04]} Kf7 {[%emt 0:00:28]} 36. Ne5+ {[%emt 0:00:22]} Ke6 {[%emt 0:00:03]} 37. Nc4 {[%emt 0:02:26]} Ba6 {[%emt 0:01:15]} 38. Bh3+ {[%emt 0:02:44]} Kf7 {[%emt 0:00:05]} 39. Nd6+ {[%emt 0:00:11]} Kf8 {[%emt 0:00:31]} 40. Rb1 {[%emt 0:00:00]} c4 {[%emt 0:00:00]} 41. e5 {[%emt 0:04:58]} c3 {[%emt 0:01:54]} 42. e6 {[%emt 0:00:58]} Re8 {[%emt 0:00:01]} 43. Nxe8 {[%emt 0:01:26]} c2 {[%emt 0:00:02]} 44. Rc1 {[%emt 0:01:46]} Nxc1 {[%emt 0:02:02]} 45. Nd6 {[%emt 0:00:42]} Ne2+ {[%emt 0:00:25]} 46. Kf2 {[%emt 0:00:09]} Bb5 {[%emt 0:00:24]} 47. e7+ {[%emt 0:00:11]} Kg8 {[%emt 0:00:30]} 48. f7+ {[%emt 0:00:09]} 1-0

[Event "Biel Main Tournament 2019"]
[Site "Biel"]
[Date "2019.07.30"]
[Round "7.6"]
[White "Pao, Lucas Ping"]
[Black "Muthu, Prakash R."]
[Result "1-0"]
[ECO "C56"]
[WhiteElo "1969"]
[BlackElo "2060"]
[Annotator "NA"]
[PlyCount "87"]
[EventDate "2019.07.20"]
[EventType "swiss"]
[EventCountry "SUI"]
[TimeControl "40/5400+30:1800+30"]

1. e4 {[%emt 0:00:00]} e5 {[%emt 0:00:00]} 2. Nf3 {[%emt 0:00:00]} Nc6 {[%emt 0:00:00]} 3. d4 {[%emt 0:00:00]} exd4 {[%emt 0:00:00]} 4. Bc4 {[%emt 0:00:00]} Nf6 {[%emt 0:00:00]} 5. e5 {[%emt 0:00:00]} d5 {[%emt 0:00:00]} 6. Bb5 {[%emt 0:00:05]} Ne4 {[%emt 0:00:05]} 7. Nxd4 {[%emt 0:00:07]} Bd7 {[%emt 0:00:03]} 8. Bxc6 {[%emt 0:00:07]} bxc6 {[%emt 0:00:04]} 9. O-O {[%emt 0:00:05]} Bc5 {[%emt 0:00:14]} 10. f3 {[%emt 0:00:09]} Ng5 {[%emt 0:04:54]} 11. f4 {[%emt 0:00:07]} Ne6 {[%emt 0:00:55]} 12. c3 {[%emt 0:00:18]} f5 {[%emt 0:00:56]} 13. Be3 {[%emt 0:03:57]} O-O {[%emt 0:06:19]} 14. Kh1 {[%emt 0:00:46]} Be7 {[%emt 0:00:17]} 15. Nd2 {[%emt 0:09:28]} c5 {[%emt 0:01:45]} 16. Nxe6 {[%emt 0:04:12]} Bxe6 {[%emt 0:00:22]} 17. Nb3 {[%emt 0:00:21]} c4 {[%emt 0:05:52]} 18. Nd4 {[%emt 0:00:08]} Qd7 {[%emt 0:00:13]} 19. Qf3 {[%emt 0:04:57]} c5 {[%emt 0:00:46]} 20. Nxe6 {[%emt 0:00:45]} Qxe6 {[%emt 0:00:16]} 21. Rad1 {[%emt 0:00:23]} Rad8 {[%emt 0:00:15]} 22. Rf2 {[%emt 0:04:32]} Rd7 {[%emt 0:01:26]} 23. Rfd2 {[%emt 0:02:56]} Rfd8 {[%emt 0:01:12]} 24. Qf2 {[%emt 0:02:42]} Qc6 {[%emt 0:02:27]} 25. h3 {[%emt 0:00:41]} g6 {[%emt 0:06:49]} 26. Kh2 {[%emt 0:01:01]} h5 {[%emt 0:06:04]} 27. Rg1 {[%emt 0:16:03]} Kf7 {[%emt 0:00:20]} 28. Rgd1 {[%emt 0:02:26]} Ke6 {[%emt 0:02:44]} 29. Qf3 {[%emt 0:03:16]} Kf7 {[%emt 0:00:25]} 30. Kg1 {[%emt 0:04:18]} Ke6 {[%emt 0:00:58]} 31. Kf2 {[%emt 0:00:40]} Qb7 {[%emt 0:00:29]} 32. Ke2 {[%emt 0:01:32]} Qb5 {[%emt 0:02:11]} 33. Kf2 {[%emt 0:01:39]} d4 {[%emt 0:02:27]} 34. cxd4 {[%emt 0:00:31]} cxd4 {[%emt 0:00:06]} 35. Rxd4 {[%emt 0:13:35]} Rxd4 {[%emt 0:00:39]} 36. Rxd4 {[%emt 0:00:14]} Qxb2+ {[%emt 0:00:04]} 37. Qe2 {[%emt 0:00:19]} c3 {[%emt 0:00:17]} 38. Kf3 {[%emt 0:08:00]} Rc8 {[%emt 0:01:10]} 39. Qa6+ {[%emt 0:01:32]} Kf7 {[%emt 0:01:36]} 40. Qxc8 {[%emt 0:00:00]} c2 {[%emt 0:00:00]} 41. e6+ {[%emt 0:01:08]} Kg7 {[%emt 0:00:20]} 42. Rd7 {[%emt 0:02:35]} Qb4 {[%emt 0:02:33]} 43. Bd4+ {[%emt 0:00:50]} Kh6 {[%emt 0:00:15]} 44. Qh8# {[%emt 0:00:06]} 1-0

[Event "Biel Main Tournament 2019"]
[Site "Biel"]
[Date "2019.07.31"]
[Round "7.7"]
[White "Kalbermatter, Philipp"]
[Black "Meinecke, Florian"]
[Result "0-1"]
[ECO "B14"]
[WhiteElo "1869"]
[BlackElo "1968"]
[Annotator "NA"]
[PlyCount "116"]
[EventDate "2019.07.20"]
[EventType "swiss"]
[EventCountry "SUI"]
[TimeControl "40/5400+30:1800+30"]

1. e4 {[%emt 0:00:00]} c6 {[%emt 0:00:00]} 2. d4 {[%emt 0:00:03]} d5 {[%emt 0:00:00]} 3. exd5 {[%emt 0:02:05]} cxd5 {[%emt 0:00:10]} 4. c4 {[%emt 0:00:31]} e6 {[%emt 0:01:38]} 5. Nc3 {[%emt 0:01:38]} Nf6 {[%emt 0:01:24]} 6. Bg5 {[%emt 0:04:00]} Be7 {[%emt 0:01:33]} 7. Nf3 {[%emt 0:05:12]} O-O {[%emt 0:06:20]} 8. Bd3 {[%emt 0:06:43]} Nc6 {[%emt 0:04:38]} 9. O-O {[%emt 0:14:51]} dxc4 {[%emt 0:11:08]} 10. Bxc4 {[%emt 0:00:27]} Nd5 {[%emt 0:00:57]} 11. Bxe7 {[%emt 0:07:15]} Ncxe7 {[%emt 0:00:40]} 12. Rc1 {[%emt 0:03:35]} b6 {[%emt 0:04:34]} 13. Re1 {[%emt 0:16:08]} Nxc3 {[%emt 0:03:11]} 14. bxc3 {[%emt 0:03:21]} Bb7 {[%emt 0:06:48]} 15. Qd3 {[%emt 0:05:20]} Bd5 {[%emt 0:09:32]} 16. Bb3 {[%emt 0:00:53]} Bxb3 {[%emt 0:04:06]} 17. axb3 {[%emt 0:00:03]} h6 {[%emt 0:00:43]} 18. c4 {[%emt 0:02:39]} Qd6 {[%emt 0:06:17]} 19. Qe3 {[%emt 0:05:03]} Nc6 {[%emt 0:03:40]} 20. Red1 {[%emt 0:02:55]} Rfd8 {[%emt 0:02:31]} 21. g3 {[%emt 0:02:24]} Ne7 {[%emt 0:05:01]} 22. Kg2 {[%emt 0:02:34]} Rac8 {[%emt 0:02:28]} 23. Qe5 {[%emt 0:03:36]} a5 {[%emt 0:07:19]} 24. Qxd6 {[%emt 0:02:38]} Rxd6 {[%emt 0:00:01]} 25. Kf1 {[%emt 0:00:40]} Kf8 {[%emt 0:02:02]} 26. Ke2 {[%emt 0:00:12]} f6 {[%emt 0:04:15]} 27. Ra1 {[%emt 0:01:03]} Ke8 {[%emt 0:03:34]} 28. c5 {[%emt 0:01:00]} bxc5 {[%emt 0:01:09]} 29. Rxa5 {[%emt 0:00:18]} cxd4 {[%emt 0:00:12]} 30. Rxd4 {[%emt 0:00:34]} Rb6 {[%emt 0:02:41]} 31. Rc4 {[%emt 0:01:16]} Rxb3 {[%emt 0:01:05]} 32. Rxc8+ {[%emt 0:00:14]} Nxc8 {[%emt 0:00:02]} 33. Nd4 {[%emt 0:00:50]} Rb6 {[%emt 0:00:14]} 34. Rb5 {[%emt 0:01:44]} Rxb5 {[%emt 0:01:25]} 35. Nxb5 {[%emt 0:00:02]} Kd7 {[%emt 0:00:12]} 36. f4 {[%emt 0:01:26]} Kc6 {[%emt 0:01:25]} 37. Nc3 {[%emt 0:00:59]} Nb6 {[%emt 0:01:10]} 38. Kd3 {[%emt 0:00:54]} Nd5 {[%emt 0:01:28]} 39. Ne4 {[%emt 0:00:42]} f5 {[%emt 0:01:56]} 40. Nd2 {[%emt 0:00:00]} Nb6 {[%emt 0:00:00]} 41. Kd4 {[%emt 0:02:22]} Kd6 {[%emt 0:03:33]} 42. Nf3 {[%emt 0:00:38]} Nd7 {[%emt 0:01:31]} 43. Ke3 {[%emt 0:04:28]} Kd5 {[%emt 0:03:01]} 44. h3 {[%emt 0:06:11]} Nb6 {[%emt 0:05:33]} 45. Nh4 {[%emt 0:04:36]} Nc4+ {[%emt 0:03:47]} 46. Kd3 {[%emt 0:01:58]} g5 {[%emt 0:03:56]} 47. Ng2 {[%emt 0:07:20]} e5 {[%emt 0:03:55]} 48. fxe5 {[%emt 0:00:26]} Nxe5+ {[%emt 0:00:02]} 49. Ke3 {[%emt 0:00:20]} Nc4+ {[%emt 0:01:42]} 50. Kd3 {[%emt 0:01:59]} Nb2+ {[%emt 0:00:10]} 51. Ke3 {[%emt 0:00:29]} Nd1+ {[%emt 0:01:51]} 52. Kf3 {[%emt 0:00:14]} Kd4 {[%emt 0:00:44]} 53. h4 {[%emt 0:01:34]} Ke5 {[%emt 0:02:18]} 54. hxg5 {[%emt 0:00:17]} hxg5 {[%emt 0:00:04]} 55. Ne3 {[%emt 0:02:04]} Nxe3 {[%emt 0:01:51]} 56. Kxe3 {[%emt 0:00:08]} g4 {[%emt 0:00:09]} 57. Kf2 {[%emt 0:01:15]} Kd4 {[%emt 0:00:19]} 58. Ke2 {[%emt 0:00:26]} Ke4 {[%emt 0:00:06]} 0-1